{"text_format":"1","workbook":"xlsx","n_sheets":4,"sheets":["FORMATOPEDIDO2.0","ALUMNO2","Resumen","menu"],"not_rendered":{"charts":0,"images":20,"macros":1,"external_links":0,"defined_names":4,"comments":1,"pivot_tables":0},"unopened":[],"bounds":{"document_bytes":16777216,"sheet_cells":100000,"rows_first":2000,"rows_last":500,"rows_between":2000,"halvings":0,"cell_chars":16384,"cell_head_chars":4096},"cells_cut":0,"cells_raw":0,"read":"whole","date_system":"1900"}

{"sheet":"FORMATOPEDIDO2.0","index":0,"n_rows":72,"n_cols":10,"rows_kept":72,"cut":false,"hidden":false,"merged":[[74,0,77,9],[105,0,105,10],[8,8,8,9],[9,8,9,9],[11,0,11,10],[101,0,101,10],[102,0,102,10],[67,2,68,2],[67,4,68,4],[67,6,68,6],[67,8,68,8],[67,10,68,10],[45,8,46,8],[45,10,46,10],[17,1,17,2],[17,3,17,4],[17,5,17,6],[73,0,73,1],[7,0,7,2],[8,0,8,2],[9,1,9,2],[8,3,8,6],[9,3,9,6],[71,1,71,3],[23,4,24,4],[23,6,24,6],[28,1,28,2],[28,3,28,4],[28,5,28,6],[39,1,39,2],[39,3,39,4],[39,5,39,6],[5,1,5,2],[6,1,6,2],[6,3,6,4],[4,0,4,2],[5,3,5,8],[6,6,6,8],[0,3,0,7],[2,0,2,10],[1,3,1,7],[56,2,57,2],[56,4,57,4],[56,6,57,6],[56,8,57,8],[56,10,57,10],[34,2,35,2],[34,4,35,4],[34,6,35,6],[34,8,35,8],[34,10,35,10],[45,2,46,2],[45,4,46,4],[3,0,3,10],[61,1,61,2],[23,2,24,2],[50,1,50,2],[50,3,50,4],[50,5,50,6],[45,6,46,6],[50,7,50,8],[50,9,50,10],[61,3,61,4],[61,5,61,6],[61,7,61,8],[61,9,61,10],[17,7,17,8],[17,9,17,10],[39,9,39,10],[23,8,24,8],[23,10,24,10],[28,7,28,8],[28,9,28,10],[39,7,39,8]]}
[null,null,null,"HAPPY LUNCHES SERVICE"]
[null,null,null,"SANTA MARÍA SECUNDARIA"]
["BCP Cuenta Corriente Soles:  194-1894682000                                                                  Cód. Cta. Interbancario BCP:  002 194 001894682000 90  \nBBVA Cuenta Corriente Soles: 0011-0149-0100033241-29                                           Cód. Cta. Interbancario BBVA: 011 - 149 - 000100033241 - 29"]
["FAVOR ENVIAR VOUCHER O TRANSFERENCIA ELECTRÓNICA A NUESTRO E-MAIL UNA VEZ REALIZADO EL ABONO EN NUESTRA CUENTA. GRACIAS POR SU COLABORACIÓN."]
[" DATOS DEL PADRE O APODERADO :"]
[null,"NOMBRES Y APELLIDOS:"]
[null,"TELÉFONO:","TELEFONO:",null,null,"CORREO ELECTRÓNICO:"]
["DATOS DEL ALUMNO                           :"]
["NOMBRES :",null,null,null,null,null,null,"GRADO Y SECCIÓN :"]
[null,"APELLIDOS :",null,null,null,null,null,"ALERGIAS :"]
[]
["IMPORTANTE: ES NECESARIO QUE LOS DATOS SOLICITADOS SEAN LLENADOS DE FORMA CORRECTA TANTO DEL TUTOR COMO DEL ALUMNO(A) . ELEGIR UNICAMENTE  LA OPCIÓN  EN LA FECHA  QUE DESEA EL SERVICIO,DE NO NECESITAR EL SERVICIO UN DÍA NO SELECCIONAR NINGUNA OPCIÓN ESE DÍA . YA QUE EL PROGRAMA CALCULARÁ LA CANTIDAD DE ALMUERZOS ELEGIDOS POR ALUMNO ASÍ COMO EL TOTAL A DEPOSITAR.PARA  REALIZAR  EL PEDIDO PARA UN ALUMNO MÁS DIRIGIRSE A LA SIGUIENTE HOJA ELECTRÓNICA.\nEN CADA HOJA ELECTRÓNICA DEBE DE HABER SOLO UN ALUMNO.\nNO RE-ENVIAR SIN HABER GUARDADO EL DOCUMENTO DESPUÉS DE HECHA LA SELECCIÓN"]
[]
[]
["Opción","Lunes",null,"Martes",null,"Miércoles",null,"Jueves",null,"Viernes"]
[null,{"$f":"menu!A3","v":0},null,{"$f":"menu!A11","v":"1  de Diciembre"},null,{"$f":"menu!A19","v":"2  de Diciembre"},null,{"$f":"menu!A27","v":"3  de Diciembre"},null,{"$f":"menu!A35","v":"4  de Diciembre"}]
[]
["Entrada",null,null,{"$f":"menu!C11","v":"Ensalada fresca"},null,{"$f":"menu!C19","v":"Wantan con Tamarindo"},null,{"$f":"menu!C27","v":"Ensalada en cubitos "},null,{"$f":"menu!C35","v":"Crema de Verduras"}]
["A",null,null,{"$f":"menu!C12","v":"Cau-cau de pollo "},null,{"$f":"menu!C20","v":"Arroz Chaufa de pollo y carne"},null,{"$f":"menu!C28","v":"Cerdo al horno con camote y vegetales"},null,{"$f":"menu!C36","v":"Choclito Saltado con pollito"}]
["Z",null,null,{"$f":"menu!C13","v":"Arroz Tapado con platanito "},null,{"$f":"menu!C21","v":"Frijoles Guisados con tocino y arroz primavera"},null,{"$f":"menu!C29","v":"Arroz con Pollo "},null,{"$f":"menu!C37","v":"Locro de Zapallo con quesito arroz"}]
["D",null,null,{"$f":"menu!C14","v":"Ensalada César con pollito al grill"},null,{"$f":"menu!C22","v":"Ensalada Delicia con pollito al grill"},null,{"$f":"menu!C30","v":"Ensalada cocida con Pavito al horno"},null,{"$f":"menu!C38","v":"Ensalada de Quinua con trozos de pollito"}]
["E",null,null,{"$f":"menu!C15","v":"Ensalada Rusa con Nuggets al horno"},null,{"$f":"menu!C23","v":"Piernitas con papitas duquesas y arroz primavera"},null,{"$f":"menu!C31","v":"Dedos de pescado con yuquitas al romero"},null,{"$f":"menu!C39","v":"Chicken Fingers con puré de Espinaca"}]
["V",null,null,{"$f":"menu!C16","v":"Causa Vegetariana "},null,{"$f":"menu!C24","v":"Arvejitas verdes con Huevito al grill "},null,{"$f":"menu!C32","v":"Guiso de Gluten con arroz "},null,{"$f":"menu!C40","v":"Lasagna Vegetariana "}]
["Postre",null,null,{"$f":"menu!C17","v":"Gelatina"},null,{"$f":"menu!C25","v":"Fruta de estación "},null,{"$f":"menu!C33","v":"Muffin de Fruta "},null,{"$f":"menu!C41","v":"Alfajor"}]
["Refresco",null,null,{"$f":"menu!C18","v":"Chicha Morada "},null,{"$f":"menu!C26","v":"Maracuyá "},null,{"$f":"menu!C34","v":"Limonada "},null,{"$f":"menu!C42","v":"Naranjada"}]
[]
["Opción",{"$f":"menu!A43","v":"7 de Diciembre"},null,{"$f":"menu!A51","v":"8 de Diciembre"},null,{"$f":"menu!A59","v":"9 de Diciembre"},null,{"$f":"menu!A67","v":"10 de Diciembre"},null,{"$f":"menu!A75","v":"11 de Diciembre"}]
[]
["Entrada",{"$f":"menu!C43","v":"Ensalada de Col "},null,null,null,{"$f":"menu!C59","v":"Huevito Relleno"},null,{"$f":"menu!C67","v":"Ensalada de Pepino"},null,{"$f":"menu!C75","v":"Tortilla de Papa"}]
["A",{"$f":"menu!C44","v":"Pollo a la Coca-Cola con Arroz Primavera"},null,null,null,{"$f":"menu!C60","v":"Tallarines al pesto  con guisito de res"},null,{"$f":"menu!C68","v":"Puré de Pallares guisados con pollo y arroz "},null,{"$f":"menu!C76","v":"Arroz a la jardinera con Guiso de Carne"}]
["Z",{"$f":"menu!C45","v":"Estofado de Res con arroz"},null,null,null,{"$f":"menu!C61","v":"MIlanesa de pollo al plato con vegetales"},null,{"$f":"menu!C69","v":"Pollo en salsa de Champignones con arroz"},null,{"$f":"menu!C77","v":"Carapulcra de Res con arroz"}]
["D",{"$f":"menu!C46","v":"Ensalada Fresca con Huevitos en su nido(con pollo molido)"},null,null,null,{"$f":"menu!C62","v":"Ensalada Criolla con pollito al grill"},null,{"$f":"menu!C70","v":"Ensalada Méxicana"},null,{"$f":"menu!C78","v":"Super Papa a la Huancaína con Huevo duro"}]
["E",{"$f":"menu!C47","v":"Nuggets al horno con tequeños"},null,null,null,{"$f":"menu!C63","v":"Pechuguitas empanizadas con Quinua con puré de papita amarilla"},null,{"$f":"menu!C71","v":"Cheeseburguer con Papitas "},null,{"$f":"menu!C79","v":"Huevitos en su nido con papitas"}]
["V",{"$f":"menu!C48","v":"Coliflor arrebozada con Arroz "},null,null,null,{"$f":"menu!C64","v":"Caihua Rellena de Gluten / Arroz blanco"},null,{"$f":"menu!C72","v":"Saltado de Vainitas Vegetariano"},null,{"$f":"menu!C80","v":"Tallarines en salsa de albahaca "}]
["Postre",{"$f":"menu!C49","v":"Bombitas Happy Lunches"},null,null,null,{"$f":"menu!C65","v":"Galletas Naturales"},null,{"$f":"menu!C73","v":"Gelatina con Flan "},null,{"$f":"menu!C81","v":"Mini Alfajor"}]
["Refresco",{"$f":"menu!C50","v":"Limonada "},null,null,null,{"$f":"menu!C66","v":"Maracuyá"},null,{"$f":"menu!C74","v":"Naranjada"},null,{"$f":"menu!C82","v":"Limonada"}]
[]
["Opción",{"$f":"menu!A83","v":"14 de Diciembre"},null,{"$f":"menu!A91","v":"15 de Diciembre"},null,{"$f":"menu!A99","v":"16 de Diciembre"},null,{"$f":"menu!A107","v":"17 de Diciembre"},null,{"$f":"menu!A115","v":"18 de Diciembre"}]
[]
["Entrada",{"$f":"menu!C83","v":"Ensalada de Tomate"},null,{"$f":"menu!C91","v":"Tequeños con Guacamole"},null,{"$f":"menu!C99","v":"Ensalada de Palta"},null,{"$f":"menu!C107","v":"Ensalada al olivo"},null,{"$f":"menu!C115","v":"Bolicausitas"}]
["A",{"$f":"menu!C84","v":"Hamburguesa al Plato con ensalada de verduras"},null,{"$f":"menu!C92","v":"Pollo al sillao con arroz Primavera"},null,{"$f":"menu!C100","v":"Pollito a la Italiana "},null,{"$f":"menu!C108","v":"Papa rellena de pollo con vegetales "},null,{"$f":"menu!C116","v":"Spaghetti a la Bolognesa "}]
["Z",{"$f":"menu!C85","v":"Frijoles rojos batidos con res y arroz primavera"},null,{"$f":"menu!C93","v":"Ají de Gallina"},null,{"$f":"menu!C101","v":"Garbanzos guisados con pollo y arroz "},null,{"$f":"menu!C109","v":"Pollo al Sillao con Arroz Primavera"},null,{"$f":"menu!C117","v":"Pollo al Vino con Arroz"}]
["D",{"$f":"menu!C86","v":"Ensalada de pastas con pollito en dados"},null,{"$f":"menu!C94","v":"Ensalada de lentejas con cerdo "},null,{"$f":"menu!C102","v":"Ensalada Caliente con Asado"},null,{"$f":"menu!C110","v":"Ensalada César con pollito al grill "},null,{"$f":"menu!C118","v":"Ensalada Waldorff con pavito al horno"}]
["E",{"$f":"menu!C87","v":"Nuggets con Papitas "},null,{"$f":"menu!C95","v":"Pollito anticuchado con papitas"},null,{"$f":"menu!C103","v":"Pizza de Queso Happy Lunches"},null,{"$f":"menu!C111","v":"Pollo al Sillao con Arroz primavera"},null,{"$f":"menu!C119","v":"Milanesa de Pescado con puré de espinacas"}]
["V",{"$f":"menu!C88","v":"Ceviche Vegetariano con Gluten "},null,{"$f":"menu!C96","v":"Caucau de Gluten con arroz "},null,{"$f":"menu!C104","v":"Saltado de Soya con Arroz blanco"},null,{"$f":"menu!C112","v":"Super Papa a la Huancaina "},null,{"$f":"menu!C120","v":"Causa Vegetariana "}]
["Postre",{"$f":"menu!C89","v":"Fruta de Estación "},null,{"$f":"menu!C97","v":"Bombitas Happy Lunches  "},null,{"$f":"menu!C105","v":"Galletas Naturales"},null,{"$f":"menu!C113","v":"Delicia de Maracuyá "},null,{"$f":"menu!C121","v":"Yogurt con Cereal "}]
["Refresco",{"$f":"menu!C90","v":"Limonada"},null,{"$f":"menu!C98","v":"Chicha Morada"},null,{"$f":"menu!C106","v":"Agua Mineral "},null,{"$f":"menu!C114","v":"Limonada"},null,{"$f":"menu!C122","v":"Limonada"}]
[]
["Opción",{"$f":"menu!A123","v":"21 de Diciembre"},null,{"$f":"menu!A131","v":"22 de Diciembre"},null,{"$f":"menu!A139","v":"23 de Diciembre"},null,{"$f":"menu!A147","v":"24 de Diciembre"},null,{"$f":"menu!A155","v":"25 de Diciembre"}]
[]
["Entrada",{"$f":"menu!C123","v":"Choclitos a la Huancaina "},null,{"$f":"menu!C131","v":"Soufflé de Verduras"},null,{"$f":"menu!C139","v":"Huevito Relleno"},null,{"$f":"menu!C147","v":0},null,{"$f":"menu!C155","v":0}]
["A",{"$f":"menu!C124","v":"Lomo Saltado "},null,{"$f":"menu!C132","v":"Arroz con Pollo "},null,{"$f":"menu!C140","v":"Seco de res con arroz"},null,{"$f":"menu!C148","v":0},null,{"$f":"menu!C156","v":0}]
["Z",{"$f":"menu!C125","v":"Arroz Árabe con pavito al horno "},null,{"$f":"menu!C133","v":"Lentejitas guisadas con pollo y arroz primavera"},null,{"$f":"menu!C141","v":"Spaghetti a lo alfredo con pollo mechado"},null,{"$f":"menu!C149","v":0},null,{"$f":"menu!C157","v":0}]
["D",{"$f":"menu!C126","v":"Ensalada de Atún"},null,{"$f":"menu!C134","v":"Ensalada  Fresca con pollito al Grill"},null,{"$f":"menu!C142","v":"Ensalada Oriental con pollito al grill"},null,{"$f":"menu!C150","v":0},null,{"$f":"menu!C158","v":0}]
["E",{"$f":"menu!C127","v":"Piernitas con camote dorado y vegetales"},null,{"$f":"menu!C135","v":"Deditos de pescado con Yuquitas "},null,{"$f":"menu!C143","v":"Croquetas de Atún con Arroz primavera"},null,{"$f":"menu!C151","v":0},null,{"$f":"menu!C159","v":0}]
["V",{"$f":"menu!C128","v":"Seco de Gluten "},null,{"$f":"menu!C136","v":"Pizza de Queso Happy Lunches "},null,{"$f":"menu!C144","v":"Saltado de Brócoli con Arroz Blanco "},null,{"$f":"menu!C152","v":0},null,{"$f":"menu!C160","v":0}]
["Postre",{"$f":"menu!C129","v":"Alfajor"},null,{"$f":"menu!C137","v":"Gelatina de colores "},null,{"$f":"menu!C145","v":"Muffin de Frutas"},null,{"$f":"menu!C153","v":0},null,{"$f":"menu!C161","v":0}]
["Refresco",{"$f":"menu!C130","v":"Limonada"},null,{"$f":"menu!C138","v":"Chicha Morada"},null,{"$f":"menu!C146","v":"Naranjada"},null,{"$f":"menu!C154","v":0},null,{"$f":"menu!C162","v":0}]
[]
["Opción",{"$f":"menu!A163","v":"28 de Diciembre"},null,{"$f":"menu!A171","v":"29 de Diciembre"},null,{"$f":"menu!A179","v":"30 de Diciembre"},null,{"$f":"menu!A187","v":"31 de Diciembre"},null,{"$f":"menu!A195","v":0}]
[]
["Entrada",{"$f":"menu!C163","v":"Ensalada Fresca"},null,{"$f":"menu!C171","v":"Papas emperejiladas"},null,{"$f":"menu!C179","v":"Mini Pizadilla "},null,{"$f":"menu!C187","v":"Solterito"},null,{"$f":"menu!C195","v":0}]
["A",{"$f":"menu!C164","v":"Carapulcra guisada con cerdo y arroz "},null,{"$f":"menu!C172","v":"Lomito Strogonoff con arroz"},null,{"$f":"menu!C180","v":"Lasagna en salsa blanca con poro y pollo "},null,{"$f":"menu!C188","v":"Guiso de res con Arroz "},null,{"$f":"menu!C196","v":0}]
["Z",{"$f":"menu!C165","v":"Seco a la Norteña con arroz "},null,{"$f":"menu!C173","v":"Pollo en salsa de Pimiento con arroz "},null,{"$f":"menu!C181","v":"Spaghetti en salsa roja con trozos de carne"},null,{"$f":"menu!C189","v":"Pepian de Choclo con Arroz "},null,{"$f":"menu!C197","v":0}]
["D",{"$f":"menu!C166","v":"Ensalada Bruscheta con pollo y mixtura de lechuga"},null,{"$f":"menu!C174","v":"Ensalada de Garbanzos y Atún "},null,{"$f":"menu!C182","v":"Causa rellena de Verduras y Pollo"},null,{"$f":"menu!C190","v":"Salpicón de Pollo "},null,{"$f":"menu!C198","v":0}]
["E",{"$f":"menu!C167","v":"Pollito anticuchado con camote al horno "},null,{"$f":"menu!C175","v":"Pollo al maní con arroz"},null,{"$f":"menu!C183","v":"Pollito anticuchado con Puré de papita amarilla "},null,{"$f":"menu!C191","v":"Pollo frito con papas al horno "},null,{"$f":"menu!C199","v":0}]
["V",{"$f":"menu!C168","v":"Hamburguesa de Soya al plato "},null,{"$f":"menu!C176","v":"Arroz Chaufa Vegetariano"},null,{"$f":"menu!C184","v":"Super Ocopa"},null,{"$f":"menu!C192","v":"Apanado Vegetariano a lo Pobre"},null,{"$f":"menu!C200","v":0}]
["Postre",{"$f":"menu!C169","v":"Galletas Naturales "},null,{"$f":"menu!C177","v":"Fruta de Estación  "},null,{"$f":"menu!C185","v":"Bombitas Happy Lunches "},null,{"$f":"menu!C193","v":"Gelatina con Fruta"},null,{"$f":"menu!C201","v":0}]
["Refresco",{"$f":"menu!C170","v":"Naranjada"},null,{"$f":"menu!C178","v":"Chicha Morada"},null,{"$f":"menu!C186","v":"Maracuyá "},null,{"$f":"menu!C194","v":"Limonada"},null,{"$f":"menu!C202","v":0}]
[]
[null,null,null,null,null,null,null,"Limpiar  Pedidos"]
[null,"SI DESEA  EDITAR O REALIZAR UN PEDIDO MÁS HACER CLICK EN ALUMNO 2"]

{"sheet":"ALUMNO2","index":1,"n_rows":72,"n_cols":10,"rows_kept":72,"cut":false,"hidden":false,"merged":[[67,2,68,2],[67,4,68,4],[67,6,68,6],[67,8,68,8],[105,0,105,10],[67,10,68,10],[73,0,73,1],[74,0,77,9],[101,0,101,10],[102,0,102,10],[71,1,71,3],[56,10,57,10],[61,1,61,2],[61,3,61,4],[61,5,61,6],[61,7,61,8],[61,9,61,10],[56,2,57,2],[56,4,57,4],[56,6,57,6],[56,8,57,8],[45,2,46,2],[45,4,46,4],[45,6,46,6],[45,8,46,8],[45,10,46,10],[50,1,50,2],[50,3,50,4],[50,5,50,6],[50,7,50,8],[50,9,50,10],[34,2,35,2],[34,4,35,4],[34,6,35,6],[34,8,35,8],[34,10,35,10],[39,1,39,2],[39,3,39,4],[39,5,39,6],[39,7,39,8],[39,9,39,10],[23,2,24,2],[23,4,24,4],[23,6,24,6],[23,8,24,8],[23,10,24,10],[28,1,28,2],[28,3,28,4],[28,5,28,6],[28,7,28,8],[28,9,28,10],[9,1,9,2],[9,3,9,6],[9,8,9,9],[11,0,11,10],[17,1,17,2],[17,3,17,4],[17,5,17,6],[17,7,17,8],[17,9,17,10],[6,1,6,2],[6,3,6,4],[6,6,6,8],[7,0,7,2],[8,0,8,2],[8,3,8,6],[8,8,8,9],[5,1,5,2],[5,3,5,8],[0,3,0,7],[1,3,1,7],[2,0,2,10],[3,0,3,10],[4,0,4,2]]}
[]
[]
[]
["FAVOR ENVIAR VOUCHER O TRANSFERENCIA ELECTRÓNICA A NUESTRO E-MAIL UNA VEZ REALIZADO EL ABONO EN NUESTRA CUENTA. GRACIAS POR SU COLABORACIÓN."]
[" DATOS DEL PADRE O APODERADO :"]
[null,"NOMBRES Y APELLIDOS:"]
[null,"TELÉFONO:","TELEFONO:",null,null,"CORREO ELECTRÓNICO:"]
["DATOS DEL ALUMNO         2                  :"]
["NOMBRES :",null,null,null,null,null,null,"GRADO Y SECCIÓN :"]
[null,"APELLIDOS :",null,null,null,null,null,"ALERGIAS :"]
[]
[]
[]
[]
["Opción","Lunes",null,"Martes",null,"Miércoles",null,"Jueves",null,"Viernes"]
[null,{"$f":"menu!A3","v":0},null,{"$f":"menu!A11","v":"1  de Diciembre"},null,{"$f":"menu!A19","v":"2  de Diciembre"},null,{"$f":"menu!A27","v":"3  de Diciembre"},null,{"$f":"menu!A35","v":"4  de Diciembre"}]
[]
["Entrada",null,null,{"$f":"menu!C11","v":"Ensalada fresca"},null,{"$f":"menu!C19","v":"Wantan con Tamarindo"},null,{"$f":"menu!C27","v":"Ensalada en cubitos "},null,{"$f":"menu!C35","v":"Crema de Verduras"}]
["A",null,null,{"$f":"menu!C12","v":"Cau-cau de pollo "},null,{"$f":"menu!C20","v":"Arroz Chaufa de pollo y carne"},null,{"$f":"menu!C28","v":"Cerdo al horno con camote y vegetales"},null,{"$f":"menu!C36","v":"Choclito Saltado con pollito"}]
["Z",null,null,{"$f":"menu!C13","v":"Arroz Tapado con platanito "},null,{"$f":"menu!C21","v":"Frijoles Guisados con tocino y arroz primavera"},null,{"$f":"menu!C29","v":"Arroz con Pollo "},null,{"$f":"menu!C37","v":"Locro de Zapallo con quesito arroz"}]
["D",null,null,{"$f":"menu!C14","v":"Ensalada César con pollito al grill"},null,{"$f":"menu!C22","v":"Ensalada Delicia con pollito al grill"},null,{"$f":"menu!C30","v":"Ensalada cocida con Pavito al horno"},null,{"$f":"menu!C38","v":"Ensalada de Quinua con trozos de pollito"}]
["E",null,null,{"$f":"menu!C15","v":"Ensalada Rusa con Nuggets al horno"},null,{"$f":"menu!C23","v":"Piernitas con papitas duquesas y arroz primavera"},null,{"$f":"menu!C31","v":"Dedos de pescado con yuquitas al romero"},null,{"$f":"menu!C39","v":"Chicken Fingers con puré de Espinaca"}]
["V",null,null,{"$f":"menu!C16","v":"Causa Vegetariana "},null,{"$f":"menu!C24","v":"Arvejitas verdes con Huevito al grill "},null,{"$f":"menu!C32","v":"Guiso de Gluten con arroz "},null,{"$f":"menu!C40","v":"Lasagna Vegetariana "}]
["Postre",null,null,{"$f":"menu!C17","v":"Gelatina"},null,{"$f":"menu!C25","v":"Fruta de estación "},null,{"$f":"menu!C33","v":"Muffin de Fruta "},null,{"$f":"menu!C41","v":"Alfajor"}]
["Refresco",null,null,{"$f":"menu!C18","v":"Chicha Morada "},null,{"$f":"menu!C26","v":"Maracuyá "},null,{"$f":"menu!C34","v":"Limonada "},null,{"$f":"menu!C42","v":"Naranjada"}]
[]
["Opción",{"$f":"menu!A43","v":"7 de Diciembre"},null,{"$f":"menu!A51","v":"8 de Diciembre"},null,{"$f":"menu!A59","v":"9 de Diciembre"},null,{"$f":"menu!A67","v":"10 de Diciembre"},null,{"$f":"menu!A75","v":"11 de Diciembre"}]
[]
["Entrada",{"$f":"menu!C43","v":"Ensalada de Col "},null,null,null,{"$f":"menu!C59","v":"Huevito Relleno"},null,{"$f":"menu!C67","v":"Ensalada de Pepino"},null,{"$f":"menu!C75","v":"Tortilla de Papa"}]
["A",{"$f":"menu!C44","v":"Pollo a la Coca-Cola con Arroz Primavera"},null,null,null,{"$f":"menu!C60","v":"Tallarines al pesto  con guisito de res"},null,{"$f":"menu!C68","v":"Puré de Pallares guisados con pollo y arroz "},null,{"$f":"menu!C76","v":"Arroz a la jardinera con Guiso de Carne"}]
["Z",{"$f":"menu!C45","v":"Estofado de Res con arroz"},null,null,null,{"$f":"menu!C61","v":"MIlanesa de pollo al plato con vegetales"},null,{"$f":"menu!C69","v":"Pollo en salsa de Champignones con arroz"},null,{"$f":"menu!C77","v":"Carapulcra de Res con arroz"}]
["D",{"$f":"menu!C46","v":"Ensalada Fresca con Huevitos en su nido(con pollo molido)"},null,null,null,{"$f":"menu!C62","v":"Ensalada Criolla con pollito al grill"},null,{"$f":"menu!C70","v":"Ensalada Méxicana"},null,{"$f":"menu!C78","v":"Super Papa a la Huancaína con Huevo duro"}]
["E",{"$f":"menu!C47","v":"Nuggets al horno con tequeños"},null,null,null,{"$f":"menu!C63","v":"Pechuguitas empanizadas con Quinua con puré de papita amarilla"},null,{"$f":"menu!C71","v":"Cheeseburguer con Papitas "},null,{"$f":"menu!C79","v":"Huevitos en su nido con papitas"}]
["V",{"$f":"menu!C48","v":"Coliflor arrebozada con Arroz "},null,null,null,{"$f":"menu!C64","v":"Caihua Rellena de Gluten / Arroz blanco"},null,{"$f":"menu!C72","v":"Saltado de Vainitas Vegetariano"},null,{"$f":"menu!C80","v":"Tallarines en salsa de albahaca "}]
["Postre",{"$f":"menu!C49","v":"Bombitas Happy Lunches"},null,null,null,{"$f":"menu!C65","v":"Galletas Naturales"},null,{"$f":"menu!C73","v":"Gelatina con Flan "},null,{"$f":"menu!C81","v":"Mini Alfajor"}]
["Refresco",{"$f":"menu!C50","v":"Limonada "},null,null,null,{"$f":"menu!C66","v":"Maracuyá"},null,{"$f":"menu!C74","v":"Naranjada"},null,{"$f":"menu!C82","v":"Limonada"}]
[]
["Opción",{"$f":"menu!A83","v":"14 de Diciembre"},null,{"$f":"menu!A91","v":"15 de Diciembre"},null,{"$f":"menu!A99","v":"16 de Diciembre"},null,{"$f":"menu!A107","v":"17 de Diciembre"},null,{"$f":"menu!A115","v":"18 de Diciembre"}]
[]
["Entrada",{"$f":"menu!C83","v":"Ensalada de Tomate"},null,{"$f":"menu!C91","v":"Tequeños con Guacamole"},null,{"$f":"menu!C99","v":"Ensalada de Palta"},null,{"$f":"menu!C107","v":"Ensalada al olivo"},null,{"$f":"menu!C115","v":"Bolicausitas"}]
["A",{"$f":"menu!C84","v":"Hamburguesa al Plato con ensalada de verduras"},null,{"$f":"menu!C92","v":"Pollo al sillao con arroz Primavera"},null,{"$f":"menu!C100","v":"Pollito a la Italiana "},null,{"$f":"menu!C108","v":"Papa rellena de pollo con vegetales "},null,{"$f":"menu!C116","v":"Spaghetti a la Bolognesa "}]
["Z",{"$f":"menu!C85","v":"Frijoles rojos batidos con res y arroz primavera"},null,{"$f":"menu!C93","v":"Ají de Gallina"},null,{"$f":"menu!C101","v":"Garbanzos guisados con pollo y arroz "},null,{"$f":"menu!C109","v":"Pollo al Sillao con Arroz Primavera"},null,{"$f":"menu!C117","v":"Pollo al Vino con Arroz"}]
["D",{"$f":"menu!C86","v":"Ensalada de pastas con pollito en dados"},null,{"$f":"menu!C94","v":"Ensalada de lentejas con cerdo "},null,{"$f":"menu!C102","v":"Ensalada Caliente con Asado"},null,{"$f":"menu!C110","v":"Ensalada César con pollito al grill "},null,{"$f":"menu!C118","v":"Ensalada Waldorff con pavito al horno"}]
["E",{"$f":"menu!C87","v":"Nuggets con Papitas "},null,{"$f":"menu!C95","v":"Pollito anticuchado con papitas"},null,{"$f":"menu!C103","v":"Pizza de Queso Happy Lunches"},null,{"$f":"menu!C111","v":"Pollo al Sillao con Arroz primavera"},null,{"$f":"menu!C119","v":"Milanesa de Pescado con puré de espinacas"}]
["V",{"$f":"menu!C88","v":"Ceviche Vegetariano con Gluten "},null,{"$f":"menu!C96","v":"Caucau de Gluten con arroz "},null,{"$f":"menu!C104","v":"Saltado de Soya con Arroz blanco"},null,{"$f":"menu!C112","v":"Super Papa a la Huancaina "},null,{"$f":"menu!C120","v":"Causa Vegetariana "}]
["Postre",{"$f":"menu!C89","v":"Fruta de Estación "},null,{"$f":"menu!C97","v":"Bombitas Happy Lunches  "},null,{"$f":"menu!C105","v":"Galletas Naturales"},null,{"$f":"menu!C113","v":"Delicia de Maracuyá "},null,{"$f":"menu!C121","v":"Yogurt con Cereal "}]
["Refresco",{"$f":"menu!C90","v":"Limonada"},null,{"$f":"menu!C98","v":"Chicha Morada"},null,{"$f":"menu!C106","v":"Agua Mineral "},null,{"$f":"menu!C114","v":"Limonada"},null,{"$f":"menu!C122","v":"Limonada"}]
[]
["Opción",{"$f":"menu!A123","v":"21 de Diciembre"},null,{"$f":"menu!A131","v":"22 de Diciembre"},null,{"$f":"menu!A139","v":"23 de Diciembre"},null,{"$f":"menu!A147","v":"24 de Diciembre"},null,{"$f":"menu!A155","v":"25 de Diciembre"}]
[]
["Entrada",{"$f":"menu!C123","v":"Choclitos a la Huancaina "},null,{"$f":"menu!C131","v":"Soufflé de Verduras"},null,{"$f":"menu!C139","v":"Huevito Relleno"},null,{"$f":"menu!C147","v":0},null,{"$f":"menu!C155","v":0}]
["A",{"$f":"menu!C124","v":"Lomo Saltado "},null,{"$f":"menu!C132","v":"Arroz con Pollo "},null,{"$f":"menu!C140","v":"Seco de res con arroz"},null,{"$f":"menu!C148","v":0},null,{"$f":"menu!C156","v":0}]
["Z",{"$f":"menu!C125","v":"Arroz Árabe con pavito al horno "},null,{"$f":"menu!C133","v":"Lentejitas guisadas con pollo y arroz primavera"},null,{"$f":"menu!C141","v":"Spaghetti a lo alfredo con pollo mechado"},null,{"$f":"menu!C149","v":0},null,{"$f":"menu!C157","v":0}]
["D",{"$f":"menu!C126","v":"Ensalada de Atún"},null,{"$f":"menu!C134","v":"Ensalada  Fresca con pollito al Grill"},null,{"$f":"menu!C142","v":"Ensalada Oriental con pollito al grill"},null,{"$f":"menu!C150","v":0},null,{"$f":"menu!C158","v":0}]
["E",{"$f":"menu!C127","v":"Piernitas con camote dorado y vegetales"},null,{"$f":"menu!C135","v":"Deditos de pescado con Yuquitas "},null,{"$f":"menu!C143","v":"Croquetas de Atún con Arroz primavera"},null,{"$f":"menu!C151","v":0},null,{"$f":"menu!C159","v":0}]
["V",{"$f":"menu!C128","v":"Seco de Gluten "},null,{"$f":"menu!C136","v":"Pizza de Queso Happy Lunches "},null,{"$f":"menu!C144","v":"Saltado de Brócoli con Arroz Blanco "},null,{"$f":"menu!C152","v":0},null,{"$f":"menu!C160","v":0}]
["Postre",{"$f":"menu!C129","v":"Alfajor"},null,{"$f":"menu!C137","v":"Gelatina de colores "},null,{"$f":"menu!C145","v":"Muffin de Frutas"},null,{"$f":"menu!C153","v":0},null,{"$f":"menu!C161","v":0}]
["Refresco",{"$f":"menu!C130","v":"Limonada"},null,{"$f":"menu!C138","v":"Chicha Morada"},null,{"$f":"menu!C146","v":"Naranjada"},null,{"$f":"menu!C154","v":0},null,{"$f":"menu!C162","v":0}]
[]
["Opción",{"$f":"menu!A163","v":"28 de Diciembre"},null,{"$f":"menu!A171","v":"29 de Diciembre"},null,{"$f":"menu!A179","v":"30 de Diciembre"},null,{"$f":"menu!A187","v":"31 de Diciembre"},null,{"$f":"menu!A195","v":0}]
[]
["Entrada",{"$f":"menu!C163","v":"Ensalada Fresca"},null,{"$f":"menu!C171","v":"Papas emperejiladas"},null,{"$f":"menu!C179","v":"Mini Pizadilla "},null,{"$f":"menu!C187","v":"Solterito"},null,{"$f":"menu!C195","v":0}]
["A",{"$f":"menu!C164","v":"Carapulcra guisada con cerdo y arroz "},null,{"$f":"menu!C172","v":"Lomito Strogonoff con arroz"},null,{"$f":"menu!C180","v":"Lasagna en salsa blanca con poro y pollo "},null,{"$f":"menu!C188","v":"Guiso de res con Arroz "},null,{"$f":"menu!C196","v":0}]
["Z",{"$f":"menu!C165","v":"Seco a la Norteña con arroz "},null,{"$f":"menu!C173","v":"Pollo en salsa de Pimiento con arroz "},null,{"$f":"menu!C181","v":"Spaghetti en salsa roja con trozos de carne"},null,{"$f":"menu!C189","v":"Pepian de Choclo con Arroz "},null,{"$f":"menu!C197","v":0}]
["D",{"$f":"menu!C166","v":"Ensalada Bruscheta con pollo y mixtura de lechuga"},null,{"$f":"menu!C174","v":"Ensalada de Garbanzos y Atún "},null,{"$f":"menu!C182","v":"Causa rellena de Verduras y Pollo"},null,{"$f":"menu!C190","v":"Salpicón de Pollo "},null,{"$f":"menu!C198","v":0}]
["E",{"$f":"menu!C167","v":"Pollito anticuchado con camote al horno "},null,{"$f":"menu!C175","v":"Pollo al maní con arroz"},null,{"$f":"menu!C183","v":"Pollito anticuchado con Puré de papita amarilla "},null,{"$f":"menu!C191","v":"Pollo frito con papas al horno "},null,{"$f":"menu!C199","v":0}]
["V",{"$f":"menu!C168","v":"Hamburguesa de Soya al plato "},null,{"$f":"menu!C176","v":"Arroz Chaufa Vegetariano"},null,{"$f":"menu!C184","v":"Super Ocopa"},null,{"$f":"menu!C192","v":"Apanado Vegetariano a lo Pobre"},null,{"$f":"menu!C200","v":0}]
["Postre",{"$f":"menu!C169","v":"Galletas Naturales "},null,{"$f":"menu!C177","v":"Fruta de Estación  "},null,{"$f":"menu!C185","v":"Bombitas Happy Lunches "},null,{"$f":"menu!C193","v":"Gelatina con Fruta"},null,{"$f":"menu!C201","v":0}]
["Refresco",{"$f":"menu!C170","v":"Naranjada"},null,{"$f":"menu!C178","v":"Chicha Morada"},null,{"$f":"menu!C186","v":"Maracuyá "},null,{"$f":"menu!C194","v":"Limonada"},null,{"$f":"menu!C202","v":0}]
[]
[null,null,null,null,null,null,null,"Limpiar  Pedidos"]
[null,"VOLVER A PRIMER PEDIDO"]

{"sheet":"Resumen","index":2,"n_rows":28,"n_cols":36,"rows_kept":28,"cut":false,"hidden":false,"merged":[[16,1,16,29],[17,1,17,29],[0,0,1,0],[0,1,1,29],[7,0,9,27],[12,0,15,29],[11,0,11,29],[28,11,29,29],[23,0,23,29],[24,0,24,29],[27,0,27,29],[25,11,26,29]]}
[null,"No se aceptarán nuevos pedidos ni cambios de opción con menos de 03 días (72 horas) de anticipación, excepto dietas por enfermedad"]
[]
["NOMBRES Y APELLIDOS","SECCION Y GRADO",{"$f":"menu!$A3","v":0},{"$f":"menu!$A11","v":"1  de Diciembre"},{"$f":"menu!$A19","v":"2  de Diciembre"},{"$f":"menu!$A27","v":"3  de Diciembre"},{"$f":"menu!$A35","v":"4  de Diciembre"},{"$f":"menu!$A43","v":"7 de Diciembre"},{"$f":"menu!$A51","v":"8 de Diciembre"},{"$f":"menu!$A59","v":"9 de Diciembre"},{"$f":"menu!$A67","v":"10 de Diciembre"},{"$f":"menu!$A75","v":"11 de Diciembre"},{"$f":"menu!$A83","v":"14 de Diciembre"},{"$f":"menu!$A91","v":"15 de Diciembre"},{"$f":"menu!$A99","v":"16 de Diciembre"},{"$f":"menu!$A107","v":"17 de Diciembre"},{"$f":"menu!$A115","v":"18 de Diciembre"},{"$f":"menu!$A123","v":"21 de Diciembre"},{"$f":"menu!$A131","v":"22 de Diciembre"},{"$f":"menu!$A139","v":"23 de Diciembre"},{"$f":"menu!$A147","v":"24 de Diciembre"},{"$f":"menu!$A155","v":"25 de Diciembre"},{"$f":"menu!$A163","v":"28 de Diciembre"},{"$f":"menu!$A171","v":"29 de Diciembre"},{"$f":"menu!$A179","v":"30 de Diciembre"},{"$f":"menu!A187","v":"31 de Diciembre"},{"$f":"menu!A195","v":0},"Número de Almuerzos","COSTO DIARIO ","Total Soles"]
["PEDIDO ALU2"]
["PEDIDO ALU1"]
[{"$f":"CONCATENATE(FORMATOPEDIDO2.0!D9,\"  \",FORMATOPEDIDO2.0!D10)","v":"  "},{"$f":"FORMATOPEDIDO2.0!I9","v":0},{"$f":"IF(C5=1,\"A\",IF(C5=2,\"Z\",IF(C5=3,\"D\",IF(C5=4,\"E\",IF(C5=5,\"V\",\"\")))))","v":""},{"$f":"IF(D5=1,\"A\",IF(D5=2,\"Z\",IF(D5=3,\"D\",IF(D5=4,\"E\",IF(D5=5,\"V\",\"\")))))","v":""},"","","","","","","","","","","","","","","","","","","","","","","",{"$f":"COUNTA(C5:AA5)","v":0},12.5,{"$f":"AB6*AC6","v":0},{"$f":"COUNTIF(C6:Z6,\"a\")","v":0},{"$f":"COUNTIF(C6:Z6,\"z\")","v":0},{"$f":"COUNTIF(C6:Z6,\"b\")","v":0},{"$f":"COUNTIF(C6:Z6,\"c\")","v":0},{"$f":"COUNTIF(C6:Z6,\"d\")","v":0},{"$f":"COUNTIF(C6:Z6,\"e\")","v":0}]
[{"$f":"CONCATENATE(ALUMNO2!D9,\"  \",ALUMNO2!D10)","v":"  "},{"$f":"ALUMNO2!I9","v":0},{"$f":"IF(C4=1,\"A\",IF(C4=2,\"Z\",IF(C4=3,\"D\",IF(C4=4,\"E\",IF(C4=5,\"V\",\"\")))))","v":""},{"$f":"IF(D4=1,\"A\",IF(D4=2,\"Z\",IF(D4=3,\"D\",IF(D4=4,\"E\",IF(D4=5,\"V\",\"\")))))","v":""},"","","","","","","","","","","","","","","","","","","","","","","",{"$f":"COUNTA(C4:AA4)","v":0},12.5,{"$f":"AB7*AC7","v":0}]
["RECUERDE QUE DESPUES DE ENVIAR SU PEDIDO (E-MAIL) TIENE 05 DIAS UTILES PARA ENVIARNOS SU VOUCHER O TRANSFERENCIA DE PAGO MEDIANTE E-MAIL.\nLA MORA SE COBRA SOLO  DESPUES DEL 5TO DIA DE SERVICIO  EN CASO USTED NO REALICE EL ABONO.",null,null,null,null,null,null,null,null,null,null,null,null,null,null,null,null,null,null,null,null,null,null,null,null,null,null,null,"TOTAL ",{"$f":"SUM(AD6:AD7)","v":0}]
[null,null,null,null,null,null,null,null,null,null,null,null,null,null,null,null,null,null,null,null,null,null,null,null,null,null,null,null,null,{"$f":"12","v":12}]
[null,null,null,null,null,null,null,null,null,null,null,null,null,null,null,null,null,null,null,null,null,null,null,null,null,null,null,null,"PAGO CON MORA ",12]
[]
["RESUMEN DE PEDIDO TOTAL:"]
["          CORREO ELECTRÓNICO:\n lunch-sm@happylunchesservice.com"]
[]
[]
[]
[]
[]
[]
[]
[]
[]
[]
["HORARIO DE ATENCIÓN AL CLIENTE: TELÉFONOS FIJOS - LUNES A VIERNES DE 7AM - 4PM    CELULARES: 7AM - 4PM"]
["Teléfonos:  445-8009  ó  250-8990         Maite Valdivia: 967759206"]
[]
[]
["Encuentre el menú en :    www.happylunchesservice.com"]

{"sheet":"menu","index":3,"n_rows":202,"n_cols":3,"rows_kept":202,"cut":false,"hidden":true,"merged":[[25,2,25,7],[26,2,26,7],[27,2,27,7],[0,0,0,7],[2,2,2,7],[3,2,3,7],[4,2,4,7],[5,2,5,7],[6,2,6,7],[8,2,8,7],[9,2,9,7],[10,2,10,7],[1,2,1,7],[2,0,9,0],[10,0,17,0],[11,2,11,7],[12,2,12,7],[13,2,13,7],[21,2,21,7],[22,2,22,7],[24,2,24,7],[14,2,14,7],[16,2,16,7],[17,2,17,7],[18,2,18,7],[19,2,19,7],[20,2,20,7],[49,2,49,7],[50,2,50,7],[51,2,51,7],[52,2,52,7],[53,2,53,7],[54,2,54,7],[42,2,42,7],[43,2,43,7],[44,2,44,7],[45,2,45,7],[46,2,46,7],[48,2,48,7],[35,2,35,7],[36,2,36,7],[37,2,37,7],[38,2,38,7],[40,2,40,7],[41,2,41,7],[28,2,28,7],[29,2,29,7],[30,2,30,7],[32,2,32,7],[33,2,33,7],[34,2,34,7],[62,2,62,7],[64,2,64,7],[65,2,65,7],[66,2,66,7],[67,2,67,7],[68,2,68,7],[56,2,56,7],[57,2,57,7],[58,2,58,7],[59,2,59,7],[60,2,60,7],[61,2,61,7],[76,2,76,7],[77,2,77,7],[78,2,78,7],[80,2,80,7],[81,2,81,7],[82,2,82,7],[69,2,69,7],[70,2,70,7],[72,2,72,7],[73,2,73,7],[74,2,74,7],[75,2,75,7],[79,2,79,7],[90,2,90,7],[91,2,91,7],[92,2,92,7],[93,2,93,7],[94,2,94,7],[96,2,96,7],[83,2,83,7],[84,2,84,7],[85,2,85,7],[86,2,86,7],[88,2,88,7],[89,2,89,7],[87,2,87,7],[95,2,95,7],[104,2,104,7],[105,2,105,7],[106,2,106,7],[107,2,107,7],[108,2,108,7],[109,2,109,7],[97,2,97,7],[98,2,98,7],[99,2,99,7],[100,2,100,7],[101,2,101,7],[102,2,102,7],[103,2,103,7],[117,2,117,7],[118,2,118,7],[120,2,120,7],[121,2,121,7],[122,2,122,7],[123,2,123,7],[110,2,110,7],[112,2,112,7],[113,2,113,7],[114,2,114,7],[115,2,115,7],[116,2,116,7],[111,2,111,7],[119,2,119,7],[143,2,143,7],[151,2,151,7],[131,2,131,7],[132,2,132,7],[133,2,133,7],[134,2,134,7],[136,2,136,7],[137,2,137,7],[124,2,124,7],[125,2,125,7],[126,2,126,7],[128,2,128,7],[129,2,129,7],[130,2,130,7],[127,2,127,7],[135,2,135,7],[152,2,152,7],[153,2,153,7],[154,2,154,7],[155,2,155,7],[156,2,156,7],[157,2,157,7],[145,2,145,7],[146,2,146,7],[147,2,147,7],[148,2,148,7],[149,2,149,7],[150,2,150,7],[18,0,25,0],[26,0,33,0],[34,0,41,0],[42,0,49,0],[50,0,57,0],[58,0,65,0],[66,0,73,0],[74,0,81,0],[82,0,89,0],[90,0,97,0],[98,0,105,0],[106,0,113,0],[114,0,121,0],[122,0,129,0],[130,0,137,0],[138,0,145,0],[146,0,153,0],[154,0,161,0],[162,0,169,0],[170,0,177,0],[176,2,176,7],[177,2,177,7],[178,0,185,0],[178,2,178,7],[179,2,179,7],[180,2,180,7],[181,2,181,7],[182,2,182,7],[184,2,184,7],[185,2,185,7],[172,2,172,7],[173,2,173,7],[174,2,174,7],[165,2,165,7],[166,2,166,7],[168,2,168,7],[169,2,169,7],[170,2,170,7],[171,2,171,7],[162,2,162,7],[163,2,163,7],[164,2,164,7],[186,0,193,0],[186,2,186,7],[187,2,187,7],[188,2,188,7],[189,2,189,7],[190,2,190,7],[192,2,192,7],[193,2,193,7],[194,0,201,0],[194,2,194,7],[195,2,195,7],[196,2,196,7],[197,2,197,7],[198,2,198,7],[200,2,200,7],[201,2,201,7],[159,2,159,7],[167,2,167,7],[175,2,175,7],[183,2,183,7],[191,2,191,7],[199,2,199,7],[7,2,7,7],[15,2,15,7],[23,2,23,7],[31,2,31,7],[39,2,39,7],[47,2,47,7],[55,2,55,7],[63,2,63,7],[71,2,71,7],[158,2,158,7],[160,2,160,7],[161,2,161,7],[138,2,138,7],[139,2,139,7],[140,2,140,7],[141,2,141,7],[142,2,142,7],[144,2,144,7]]}
["Desde esta hoja de cálculo se ingresan los pedidos mensuales para que se actulicen los calendarios NO SE MUESTRA A LOS CLIENTES\n*SOLO SE CAMBIA DÍA Y MENU"]
["DIAS","OPCIONES"]
[null,"Entrada"]
[null,"A"]
[null,"Z"]
[null,"D"]
[null,"E"]
[null,"V"]
[null,"postre"]
[null,"refresco"]
["1  de Diciembre","Entrada","Ensalada fresca"]
[null,"A","Cau-cau de pollo "]
[null,"Z","Arroz Tapado con platanito "]
[null,"D","Ensalada César con pollito al grill"]
[null,"E","Ensalada Rusa con Nuggets al horno"]
[null,"V","Causa Vegetariana "]
[null,"postre","Gelatina"]
[null,"refresco","Chicha Morada "]
["2  de Diciembre","Entrada","Wantan con Tamarindo"]
[null,"A","Arroz Chaufa de pollo y carne"]
[null,"Z","Frijoles Guisados con tocino y arroz primavera"]
[null,"D","Ensalada Delicia con pollito al grill"]
[null,"E","Piernitas con papitas duquesas y arroz primavera"]
[null,"V","Arvejitas verdes con Huevito al grill "]
[null,"postre","Fruta de estación "]
[null,"refresco","Maracuyá "]
["3  de Diciembre","Entrada","Ensalada en cubitos "]
[null,"A","Cerdo al horno con camote y vegetales"]
[null,"Z","Arroz con Pollo "]
[null,"D","Ensalada cocida con Pavito al horno"]
[null,"E","Dedos de pescado con yuquitas al romero"]
[null,"V","Guiso de Gluten con arroz "]
[null,"postre","Muffin de Fruta "]
[null,"refresco","Limonada "]
["4  de Diciembre","Entrada","Crema de Verduras"]
[null,"A","Choclito Saltado con pollito"]
[null,"Z","Locro de Zapallo con quesito arroz"]
[null,"D","Ensalada de Quinua con trozos de pollito"]
[null,"E","Chicken Fingers con puré de Espinaca"]
[null,"V","Lasagna Vegetariana "]
[null,"postre","Alfajor"]
[null,"refresco","Naranjada"]
["7 de Diciembre","Entrada","Ensalada de Col "]
[null,"A","Pollo a la Coca-Cola con Arroz Primavera"]
[null,"Z","Estofado de Res con arroz"]
[null,"D","Ensalada Fresca con Huevitos en su nido(con pollo molido)"]
[null,"E","Nuggets al horno con tequeños"]
[null,"V","Coliflor arrebozada con Arroz "]
[null,"postre","Bombitas Happy Lunches"]
[null,"refresco","Limonada "]
["8 de Diciembre","Entrada","Ensalada de Pepino"]
[null,"A","Encuentros al horno con papitas emperejiladas"]
[null,"Z","Bisteck en trozos con papitas"]
[null,"D","Quiche de Alcachofa con pollito"]
[null,"E","Pollito BBQ con zanahoria y apio en tiras y arroz "]
[null,"V","Saltado de Brócolí con carne de Soya y arroz "]
[null,"postre","Fruta de Estación "]
[null,"refresco","Chicha Morada"]
["9 de Diciembre","Entrada","Huevito Relleno"]
[null,"A","Tallarines al pesto  con guisito de res"]
[null,"Z","MIlanesa de pollo al plato con vegetales"]
[null,"D","Ensalada Criolla con pollito al grill"]
[null,"E","Pechuguitas empanizadas con Quinua con puré de papita amarilla"]
[null,"V","Caihua Rellena de Gluten / Arroz blanco"]
[null,"postre","Galletas Naturales"]
[null,"refresco","Maracuyá"]
["10 de Diciembre","Entrada","Ensalada de Pepino"]
[null,"A","Puré de Pallares guisados con pollo y arroz "]
[null,"Z","Pollo en salsa de Champignones con arroz"]
[null,"D","Ensalada Méxicana"]
[null,"E","Cheeseburguer con Papitas "]
[null,"V","Saltado de Vainitas Vegetariano"]
[null,"postre","Gelatina con Flan "]
[null,"refresco","Naranjada"]
["11 de Diciembre","Entrada","Tortilla de Papa"]
[null,"A","Arroz a la jardinera con Guiso de Carne"]
[null,"Z","Carapulcra de Res con arroz"]
[null,"D","Super Papa a la Huancaína con Huevo duro"]
[null,"E","Huevitos en su nido con papitas"]
[null,"V","Tallarines en salsa de albahaca "]
[null,"postre","Mini Alfajor"]
[null,"refresco","Limonada"]
["14 de Diciembre","Entrada","Ensalada de Tomate"]
[null,"A","Hamburguesa al Plato con ensalada de verduras"]
[null,"Z","Frijoles rojos batidos con res y arroz primavera"]
[null,"D","Ensalada de pastas con pollito en dados"]
[null,"E","Nuggets con Papitas "]
[null,"V","Ceviche Vegetariano con Gluten "]
[null,"postre","Fruta de Estación "]
[null,"refresco","Limonada"]
["15 de Diciembre","Entrada","Tequeños con Guacamole"]
[null,"A","Pollo al sillao con arroz Primavera"]
[null,"Z","Ají de Gallina"]
[null,"D","Ensalada de lentejas con cerdo "]
[null,"E","Pollito anticuchado con papitas"]
[null,"V","Caucau de Gluten con arroz "]
[null,"postre","Bombitas Happy Lunches  "]
[null,"refresco","Chicha Morada"]
["16 de Diciembre","Entrada","Ensalada de Palta"]
[null,"A","Pollito a la Italiana "]
[null,"Z","Garbanzos guisados con pollo y arroz "]
[null,"D","Ensalada Caliente con Asado"]
[null,"E","Pizza de Queso Happy Lunches"]
[null,"V","Saltado de Soya con Arroz blanco"]
[null,"postre","Galletas Naturales"]
[null,"refresco","Agua Mineral "]
["17 de Diciembre","Entrada","Ensalada al olivo"]
[null,"A","Papa rellena de pollo con vegetales "]
[null,"Z","Pollo al Sillao con Arroz Primavera"]
[null,"D","Ensalada César con pollito al grill "]
[null,"E","Pollo al Sillao con Arroz primavera"]
[null,"V","Super Papa a la Huancaina "]
[null,"postre","Delicia de Maracuyá "]
[null,"refresco","Limonada"]
["18 de Diciembre","Entrada","Bolicausitas"]
[null,"A","Spaghetti a la Bolognesa "]
[null,"Z","Pollo al Vino con Arroz"]
[null,"D","Ensalada Waldorff con pavito al horno"]
[null,"E","Milanesa de Pescado con puré de espinacas"]
[null,"V","Causa Vegetariana "]
[null,"postre","Yogurt con Cereal "]
[null,"refresco","Limonada"]
["21 de Diciembre","Entrada","Choclitos a la Huancaina "]
[null,"A","Lomo Saltado "]
[null,"Z","Arroz Árabe con pavito al horno "]
[null,"D","Ensalada de Atún"]
[null,"E","Piernitas con camote dorado y vegetales"]
[null,"V","Seco de Gluten "]
[null,"postre","Alfajor"]
[null,"refresco","Limonada"]
["22 de Diciembre","Entrada","Soufflé de Verduras"]
[null,"A","Arroz con Pollo "]
[null,"Z","Lentejitas guisadas con pollo y arroz primavera"]
[null,"D","Ensalada  Fresca con pollito al Grill"]
[null,"E","Deditos de pescado con Yuquitas "]
[null,"V","Pizza de Queso Happy Lunches "]
[null,"postre","Gelatina de colores "]
[null,"refresco","Chicha Morada"]
["23 de Diciembre","Entrada","Huevito Relleno"]
[null,"A","Seco de res con arroz"]
[null,"Z","Spaghetti a lo alfredo con pollo mechado"]
[null,"D","Ensalada Oriental con pollito al grill"]
[null,"E","Croquetas de Atún con Arroz primavera"]
[null,"V","Saltado de Brócoli con Arroz Blanco "]
[null,"postre","Muffin de Frutas"]
[null,"refresco","Naranjada"]
["24 de Diciembre","Entrada"]
[null,"A"]
[null,"Z"]
[null,"D"]
[null,"E"]
[null,"V"]
[null,"postre"]
[null,"refresco"]
["25 de Diciembre","Entrada"]
[null,"A"]
[null,"Z"]
[null,"D"]
[null,"E"]
[null,"V"]
[null,"postre"]
[null,"refresco"]
["28 de Diciembre","Entrada","Ensalada Fresca"]
[null,"A","Carapulcra guisada con cerdo y arroz "]
[null,"Z","Seco a la Norteña con arroz "]
[null,"D","Ensalada Bruscheta con pollo y mixtura de lechuga"]
[null,"E","Pollito anticuchado con camote al horno "]
[null,"V","Hamburguesa de Soya al plato "]
[null,"postre","Galletas Naturales "]
[null,"refresco","Naranjada"]
["29 de Diciembre","Entrada","Papas emperejiladas"]
[null,"A","Lomito Strogonoff con arroz"]
[null,"Z","Pollo en salsa de Pimiento con arroz "]
[null,"D","Ensalada de Garbanzos y Atún "]
[null,"E","Pollo al maní con arroz"]
[null,"V","Arroz Chaufa Vegetariano"]
[null,"postre","Fruta de Estación  "]
[null,"refresco","Chicha Morada"]
["30 de Diciembre","Entrada","Mini Pizadilla "]
[null,"A","Lasagna en salsa blanca con poro y pollo "]
[null,"Z","Spaghetti en salsa roja con trozos de carne"]
[null,"D","Causa rellena de Verduras y Pollo"]
[null,"E","Pollito anticuchado con Puré de papita amarilla "]
[null,"V","Super Ocopa"]
[null,"postre","Bombitas Happy Lunches "]
[null,"refresco","Maracuyá "]
["31 de Diciembre","Entrada","Solterito"]
[null,"A","Guiso de res con Arroz "]
[null,"Z","Pepian de Choclo con Arroz "]
[null,"D","Salpicón de Pollo "]
[null,"E","Pollo frito con papas al horno "]
[null,"V","Apanado Vegetariano a lo Pobre"]
[null,"postre","Gelatina con Fruta"]
[null,"refresco","Limonada"]
[null,"Entrada"]
[null,"A"]
[null,"Z"]
[null,"D"]
[null,"E"]
[null,"V"]
[null,"postre"]
[null,"refresco"]